bitfinex/quotes_ETHUSD_20241019
["timestamp","ask_amount","ask_price","bid_price","bid_amount"]
[1729359531272,0.05464004,2642.9,2642.5,1.74540137]
[1729359531613,0.05464004,2642.9,2642.6,0.1624648]
[1729359531812,0.05464004,2642.9,2642.7,0.16245746]
[1729359531986,0.05464004,2642.9,2642.5,1.74540137]
[1729359532305,0.05464004,2642.9,2642.6,0.16245822]
[1729359532552,0.05464004,2642.9,2642.5,1.74540137]
[1729359532819,0.05464004,2642.9,2642.6,0.16244334]
[1729359533111,0.05464004,2642.9,2642.5,1.74540137]
[1729359533275,0.05464004,2642.9,2642.6,0.16244668]
[1729359533475,0.05464004,2642.9,2642.5,1.74540137]
[1729359533687,0.05464004,2642.9,2642.6,0.16245096]
[1729359533884,0.05464004,2642.9,2642.5,1.74540137]
[1729359534090,0.05464004,2642.9,2642.6,0.95527717]
[1729359534301,0.05464004,2642.9,2642.6,0.79282773]
[1729359534692,0.05464004,2642.9,2642.7,0.79282773]
[1729359535004,0.05464004,2642.9,2642.6,0.79282773]
[1729359535795,0.05464004,2642.9,2642.7,0.79282773]
[1729359536118,0.05464004,2642.9,2642.6,0.79282773]
[1729359540153,0.05464004,2643.0,2642.6,0.79282773]
[1729359541755,0.05464004,2643.0,2642.7,0.79282773]
[1729359541953,0.05464004,2643.0,2642.6,0.79282773]
[1729359542835,0.05464004,2643.0,2642.6,1.38151828]
[1729359544658,0.8254,2643.1,2642.7,0.95521844]
[1729359544858,0.8254,2643.1,2642.7,0.79282773]
[1729359546650,0.05464004,2643.0,2642.7,0.79282773]
[1729359547465,0.05464004,2643.0,2642.6,1.38151828]
[1729359547622,0.05464004,2643.0,2642.7,0.79282773]
[1729359547827,0.88004004,2643.1,2642.6,1.21161828]
[1729359548029,0.88004004,2643.1,2642.7,0.95522981]
[1729359548269,0.88004004,2643.1,2642.7,0.79282773]
[1729359549068,0.05464004,2643.0,2642.7,0.79282773]
[1729359549972,0.88004004,2643.1,2642.7,0.79282773]
[1729359551300,0.8254,2643.1,2642.7,0.79282773]
[1729359556981,0.05464004,2643.0,2642.7,0.79282773]
[1729359557389,0.05464004,2643.0,2642.8,0.16250017]
[1729359557599,0.05464004,2643.0,2642.7,0.79282773]
[1729359558698,0.8254,2643.1,2642.7,0.79282773]
[1729359558917,0.88004004,2643.1,2642.7,0.79282773]
[1729359561702,0.8254,2643.1,2642.7,0.79282773]
[1729359562001,0.05464004,2643.0,2642.7,0.79282773]
[1729359562668,0.7799,2642.9,2642.7,0.79282773]
[1729359564102,0.83454004,2642.9,2642.7,0.79282773]
[1729359564323,1.25851604,2642.9,2642.7,0.79282773]
[1729359564694,1.25851604,2642.9,2642.3,0.63732366]
[1729359565016,0.7738,2642.8,2642.4,0.42263497]
[1729359565197,0.7738,2642.8,2642.5,0.16254307]
[1729359565397,0.7738,2642.8,2642.6,0.16254307]
[1729359565594,0.7738,2642.8,2642.3,0.63732366]
[1729359565790,0.7738,2642.8,2642.4,0.42259615]
[1729359565995,0.7738,2642.8,2642.5,0.16252814]
[1729359566209,0.7738,2642.8,2642.6,0.16252814]
[1729359566435,0.7738,2642.8,2642.3,0.63732366]
[1729359566644,0.7738,2642.8,2642.4,0.42258759]
[1729359566800,0.7738,2642.8,2642.5,0.16252485]
[1729359566998,0.7738,2642.8,2642.6,0.16252485]
[1729359567245,0.7738,2642.8,2642.3,0.63732366]
[1729359567416,0.7738,2642.8,2642.4,0.42257202]
[1729359567617,0.7738,2642.8,2642.5,0.16251886]
[1729359567830,0.7738,2642.8,2642.6,0.16251886]
[1729359568152,0.7738,2642.8,2642.3,0.63732366]
[1729359568440,0.7738,2642.8,2642.4,0.4225793]
[1729359568646,0.7738,2642.8,2642.5,0.16252166]
[1729359568811,0.7738,2642.8,2642.6,0.16252166]
[1729359569009,0.7738,2642.8,2642.3,0.63732366]
[1729359569210,0.7738,2642.8,2642.6,0.79287459]
[1729359569624,0.05464004,2642.7,2642.6,0.79287459]
[1729359569821,0.05464004,2642.7,2642.6,0.95538699]
[1729359570444,0.7738,2642.8,2642.6,0.95538699]
[1729359570618,0.7738,2642.8,2642.6,0.79287459]
[1729359575026,0.7738,2642.8,2642.7,0.79287459]
[1729359575547,0.7738,2642.8,2642.7,0.95534468]
[1729359575748,0.7738,2642.8,2642.7,0.79287459]
[1729359576750,0.7738,2642.8,2642.7,0.95534222]
[1729359577064,0.7738,2642.8,2642.7,0.79287459]
[1729359578475,0.7738,2642.8,2642.7,0.95534187]
[1729359579127,0.7738,2642.8,2642.7,0.79287459]
[1729359579326,0.7738,2642.8,2642.6,0.79287459]
[1729359580666,0.7738,2642.8,2642.7,0.79287459]
[1729359581276,0.7738,2642.8,2642.6,0.79287459]
[1729359582062,0.7738,2642.8,2642.7,0.79287459]
[1729359582260,0.7738,2642.8,2642.6,0.79287459]
[1729359582449,0.7738,2642.8,2642.7,0.79287459]
[1729359582649,0.7738,2642.8,2642.6,0.79287459]
[1729359584151,0.7738,2642.8,2642.7,0.79287459]
[1729359584950,1.197167,2642.8,2642.6,0.79287459]
[1729359585156,0.05464004,2642.7,2642.6,0.79287459]
[1729359585581,4.602637,2642.8,2642.5,0.79287459]
[1729359585856,0.05464004,2642.7,2642.5,0.79287459]
[1729359586056,0.7804,2642.6,2642.5,0.79287459]
[1729359586254,0.7804,2642.6,2642.5,0.95536679]
[1729359586780,0.7804,2642.6,2642.5,0.79287459]
[1729359586959,0.7804,2642.6,2642.5,0.955354]
[1729359589893,0.83504004,2642.6,2642.5,0.955354]
[1729359590056,0.7804,2642.6,2642.5,0.955354]
[1729359590557,0.7804,2642.6,2642.5,0.95530869]
[1729359590758,0.7804,2642.6,2642.5,0.16243794]
[1729359591779,0.7804,2642.6,2642.4,0.79287459]
[1729359592253,0.7804,2642.6,2642.5,0.95530835]
[1729359592598,0.7804,2642.6,2642.5,0.16243376]
[1729359592955,0.7804,2642.6,2642.4,0.79287459]
[1729359593494,0.7804,2642.6,2642.5,0.1624398]
[1729359593810,0.7804,2642.6,2642.4,0.79287459]
[1729359595070,0.7804,2642.6,2642.5,0.16243238]
[1729359596098,0.7804,2642.6,2642.4,0.79287459]
[1729359596395,0.7804,2642.6,2642.5,0.16241971]
[1729359596764,0.7804,2642.6,2642.4,0.79287459]
[1729359596963,0.7804,2642.6,2642.5,0.16242054]
[1729359597291,0.7804,2642.6,2642.4,0.79287459]
[1729359597666,0.7804,2642.6,2642.5,0.16241556]
[1729359597866,0.7804,2642.6,2642.4,0.79287459]
[1729359598101,0.7804,2642.6,2642.5,0.9552873]
[1729359598373,0.7804,2642.6,2642.5,0.95528517]
[1729359598781,0.7804,2642.6,2642.4,0.79287459]
[1729359601499,0.7804,2642.6,2642.5,0.16241432]
[1729359601705,0.7804,2642.6,2642.4,0.79287459]
[1729359605316,0.05464004,2642.8,2642.4,0.79287459]
[1729359605498,3.40508,2643.2,2642.5,1.00847011]
[1729359605819,0.83734004,2643.1,2642.7,0.79287459]
[1729359606712,0.83734004,2643.1,2642.6,0.79287459]
[1729359607077,0.83734004,2643.1,2642.7,0.79287459]
[1729359607882,0.83734004,2643.1,2642.6,0.79287459]
[1729359608493,0.83734004,2643.1,2642.7,0.79287459]
[1729359610079,0.83734004,2643.1,2642.8,0.1699]
[1729359611227,0.83734004,2643.1,2642.7,0.79287459]
[1729359615542,0.83734004,2643.1,2642.6,0.96277459]
[1729359615830,0.83734004,2643.1,2642.7,0.79287459]
[1729359616123,0.83734004,2643.1,2642.6,0.96277459]
[1729359616321,0.83734004,2643.1,2642.7,0.79287459]
[1729359616499,0.83734004,2643.1,2642.6,0.96277459]
[1729359620642,0.83734004,2643.1,2642.7,0.79287459]
[1729359620813,0.83734004,2643.1,2642.6,0.96277459]
[1729359622522,4.24246004,2643.1,2642.6,0.96277459]
[1729359622926,0.83734004,2643.1,2642.6,0.96277459]
[1729359623339,0.83734004,2643.1,2642.7,0.79287459]
[1729359623847,0.83734004,2643.1,2642.6,0.96277459]
[1729359627014,4.24246004,2643.1,2642.6,0.96277459]
[1729359627310,0.7817,2643.3,2642.8,1.34287459]
[1729359627511,0.7817,2643.3,2643.0,0.1699]
[1729359628153,0.7817,2643.3,2642.9,0.79287459]
[1729359628524,0.7817,2643.3,2642.8,1.51277459]
[1729359628738,0.7817,2643.3,2642.8,1.98272005]
[1729359630289,0.7817,2643.3,2642.8,1.43272005]
[1729359630454,0.05464004,2643.2,2642.8,0.79287459]
[1729359630665,0.7817,2643.1,2642.7,0.79287459]
[1729359630956,0.7817,2642.9,2642.6,0.79287459]
[1729359631962,0.05464004,2642.8,2642.6,0.79287459]
[1729359632337,0.05464004,2642.8,2642.5,0.79287459]
[1729359632663,0.05464004,2642.8,2642.6,0.95517372]
[1729359632873,0.05464004,2642.8,2642.6,0.79287459]
[1729359633027,0.05464004,2642.8,2642.5,0.79287459]
[1729359633232,0.7817,2642.7,2642.5,0.79287459]
[1729359633647,0.7817,2642.7,2642.4,0.79287459]
[1729359634173,0.7817,2642.7,2642.5,0.16233355]
[1729359634330,0.7817,2642.7,2642.4,0.79287459]
[1729359634684,0.7817,2642.7,2642.5,0.16234176]
[1729359634863,0.7817,2642.7,2642.4,0.79287459]
[1729359635180,0.7817,2642.7,2642.5,0.1623422]
[1729359635330,0.7817,2642.7,2642.4,0.79287459]
[1729359635530,0.7817,2642.7,2642.5,0.16235058]
[1729359635744,0.7817,2642.7,2642.4,0.79287459]
[1729359635968,0.7817,2642.7,2642.5,0.16235416]
[1729359636171,0.7817,2642.7,2642.4,0.79287459]
[1729359636873,0.7817,2642.7,2642.5,0.162344]
[1729359637058,0.7817,2642.7,2642.4,0.79287459]
[1729359638969,4.18731,2642.7,2642.4,0.79287459]
[1729359639179,4.24214004,2642.6,2642.3,0.79287459]
[1729359639547,4.24214004,2642.6,2642.1,1.67840396]
[1729359639548,3.40592,2642.5,2642.2,0.79287459]
[1729359640361,0.7817,2642.4,2642.2,0.79287459]
[1729359640568,0.7817,2642.4,2642.1,1.28196667]
[1729359641059,0.7817,2642.4,2642.1,0.79287459]
[1729359641060,4.24239004,2642.4,2642.1,0.79287459]
[1729359641261,0.764831,2642.3,2642.1,0.79287459]
[1729359641433,4.24233004,2642.4,2642.1,0.79287459]
[1729359641761,4.24233004,2642.4,2642.0,0.79287459]
[1729359641762,0.83634004,2642.4,2642.0,0.79287459]
[1729359642137,0.83634004,2642.4,2642.1,0.79287459]
[1729359642548,0.83634004,2642.4,2642.0,0.79287459]
[1729359643563,4.24234004,2642.4,2642.0,0.79287459]
[1729359646973,4.24234004,2642.4,2641.9,0.79287459]
[1729359647340,4.24234004,2642.4,2642.0,0.79287459]
[1729359647543,4.24234004,2642.4,2641.9,0.79287459]
[1729359651778,0.83634004,2642.4,2641.9,0.79287459]
[1729359651986,0.83634004,2642.4,2641.9,1.01703524]
[1729359656243,4.24235004,2642.4,2641.9,1.01703524]
[1729359656478,4.24235004,2642.4,2641.9,0.79287459]
[1729359660000,4.24235004,2642.4,2641.9,0.79287459]
[1729359660358,4.24235004,2642.4,2642.0,0.16220979]
[1729359660551,4.24235004,2642.4,2641.9,0.79287459]
[1729359660798,4.24235004,2642.4,2642.0,0.16220825]
[1729359660998,4.24235004,2642.4,2641.9,0.79287459]
[1729359661168,4.24235004,2642.4,2642.0,0.16220251]
[1729359661489,4.24235004,2642.4,2641.9,0.79287459]
[1729359661702,4.24235004,2642.4,2642.0,0.16223673]
[1729359661898,4.24235004,2642.4,2641.9,0.79287459]
[1729359662084,4.24235004,2642.4,2642.0,0.16223051]
[1729359662284,4.24235004,2642.4,2641.9,0.79287459]
[1729359662459,4.24235004,2642.4,2642.0,0.1622623]
[1729359662654,4.24235004,2642.4,2641.9,0.79287459]
[1729359662895,4.24235004,2642.4,2642.0,0.16226128]
[1729359663091,4.24235004,2642.4,2641.9,0.79287459]
[1729359663404,4.24235004,2642.4,2642.0,0.16228809]
[1729359663598,4.24235004,2642.4,2641.9,0.79287459]
[1729359663894,4.24235004,2642.4,2642.0,0.16229427]
[1729359664101,4.24235004,2642.4,2641.9,0.79287459]
[1729359664411,4.24235004,2642.4,2642.0,0.16229813]
[1729359664581,4.24235004,2642.4,2642.1,0.16229813]
[1729359664781,4.24235004,2642.4,2641.9,0.79287459]
[1729359664990,4.24235004,2642.4,2642.0,0.16231634]
[1729359665314,4.24235004,2642.4,2642.1,0.16231634]
[1729359665506,4.24235004,2642.4,2641.9,0.79287459]
[1729359665706,4.24235004,2642.4,2642.0,0.16234362]
[1729359665880,4.24235004,2642.4,2641.9,0.79287459]
[1729359665881,4.24235004,2642.4,2642.1,0.16234362]
[1729359666083,4.24235004,2642.4,2641.9,0.79287459]
[1729359666483,4.24235004,2642.4,2642.0,0.16237964]
[1729359666684,4.24235004,2642.4,2642.1,0.16237964]
[1729359666912,4.24235004,2642.4,2641.9,0.79287459]
[1729359667072,4.24235004,2642.4,2642.0,0.16238408]
[1729359667276,4.24235004,2642.4,2642.1,0.16238408]
[1729359667472,4.24235004,2642.4,2642.2,0.16242024]
[1729359667689,4.24235004,2642.4,2641.9,0.79287459]
[1729359667889,4.24235004,2642.4,2642.0,0.1624295]
[1729359668089,4.24235004,2642.4,2642.1,0.1624295]
[1729359668291,4.24235004,2642.4,2642.2,0.16249176]
[1729359668578,4.24235004,2642.4,2642.0,0.26000994]
[1729359668779,4.24235004,2642.4,2642.1,0.16248909]
[1729359668979,4.24235004,2642.4,2642.2,0.16248909]
[1729359669313,4.24235004,2642.4,2641.9,0.79287459]
[1729359669678,4.24235004,2642.4,2642.0,0.42260778]
[1729359669877,4.24235004,2642.4,2642.1,0.16253261]
[1729359670092,4.24235004,2642.4,2642.2,0.16253261]
[1729359670334,4.24235004,2642.4,2641.9,0.79287459]
[1729359670611,4.24235004,2642.4,2642.0,0.42274614]
[1729359670917,4.24235004,2642.4,2642.1,0.16258582]
[1729359671114,4.24235004,2642.4,2642.2,0.16258582]
[1729359671411,4.24235004,2642.4,2641.9,0.79287459]
[1729359671625,4.24235004,2642.4,2642.0,0.42275729]
[1729359671918,4.24235004,2642.4,2642.1,0.16259011]
[1729359672227,4.24235004,2642.4,2642.2,0.16259011]
[1729359672402,4.24235004,2642.4,2641.9,0.79287459]
[1729359672717,4.24235004,2642.4,2642.0,0.42276259]
[1729359672881,4.24235004,2642.4,2642.1,0.16259215]
[1729359673081,4.24235004,2642.4,2642.2,0.16259215]
[1729359673281,4.24235004,2642.4,2641.9,0.79287459]
[1729359673483,4.24235004,2642.4,2642.0,0.42274239]
[1729359673702,4.24235004,2642.4,2642.1,0.16258438]
[1729359673910,4.24235004,2642.4,2642.2,0.16258438]
[1729359674119,4.24235004,2642.4,2642.3,0.16256184]
[1729359674879,4.24235004,2642.4,2642.0,0.79287459]
[1729359675080,4.24235004,2642.4,2642.1,0.16255908]
[1729359675282,4.24235004,2642.4,2642.2,0.16255908]
[1729359675527,4.24235004,2642.4,2642.0,0.79287459]
[1729359675760,4.24235004,2642.4,2642.1,0.1625574]
[1729359676059,4.24235004,2642.4,2642.2,0.1625574]
[1729359676266,4.24235004,2642.4,2642.0,0.79287459]
[1729359676577,4.24235004,2642.4,2642.1,0.16255363]
[1729359676733,4.24235004,2642.4,2642.2,0.16255363]
[1729359677070,4.24235004,2642.4,2642.0,0.79287459]
[1729359677232,4.24235004,2642.4,2642.1,0.79287459]
[1729359677431,4.24235004,2642.4,2642.2,0.16255923]
[1729359677632,4.24235004,2642.4,2642.1,0.79287459]
[1729359677835,4.24235004,2642.4,2642.2,0.16255918]
[1729359678034,4.24235004,2642.4,2642.1,0.79287459]
[1729359678245,4.24235004,2642.4,2642.2,0.16256092]
[1729359678445,4.24235004,2642.4,2642.1,0.79287459]
[1729359678649,4.24235004,2642.4,2642.2,0.16255874]
[1729359678944,4.24235004,2642.4,2642.1,0.79287459]
[1729359679187,4.24235004,2642.4,2642.2,0.1625647]
[1729359679485,4.24235004,2642.4,2642.1,0.79287459]
[1729359679681,4.24235004,2642.4,2642.2,0.16172605]
[1729359679889,4.24235004,2642.4,2642.1,0.79287459]
[1729359680094,4.24235004,2642.4,2642.2,0.1617321]
[1729359680261,4.24235004,2642.4,2642.1,0.79287459]
[1729359680459,4.24235004,2642.4,2642.2,0.16172735]
[1729359680764,4.24235004,2642.4,2642.1,0.79287459]
[1729359680962,4.24235004,2642.4,2642.2,0.16172929]
[1729359681143,4.24235004,2642.4,2642.1,0.79287459]
[1729359681347,4.24235004,2642.4,2642.2,0.16173464]
[1729359681673,4.24235004,2642.4,2642.1,0.79287459]
[1729359681862,4.24235004,2642.4,2642.2,0.16173759]
[1729359682048,4.24235004,2642.4,2642.1,0.79287459]
[1729359682587,4.24235004,2642.4,2642.2,0.16173694]
[1729359682753,4.24235004,2642.4,2642.1,0.79287459]
[1729359683983,0.8059,2642.3,2642.1,0.79287459]
[1729359685585,4.21204,2642.3,2642.1,0.79287459]
[1729359685976,0.05464004,2642.2,2642.1,0.79287459]
[1729359686179,0.05464004,2642.2,2642.1,0.95458214]
[1729359686695,0.05464004,2642.2,2642.1,0.95457076]
[1729359687796,0.86054004,2642.3,2642.1,0.79287459]
[1729359688991,0.8059,2642.3,2642.1,0.79287459]
[1729359689685,0.05464004,2642.2,2642.1,0.79287459]
[1729359690059,0.05464004,2642.2,2642.1,0.95452309]
[1729359690271,0.05464004,2642.2,2642.1,0.79287459]
[1729359690760,0.05464004,2642.2,2642.1,0.95452533]
[1729359691067,0.86054004,2642.3,2642.1,0.79287459]
[1729359693494,4.26666004,2642.3,2642.1,0.79287459]
[1729359698621,0.86054004,2642.3,2642.1,0.79287459]
[1729359698917,0.05464004,2642.2,2642.1,0.79287459]
[1729359699398,0.86054004,2642.3,2642.1,0.79287459]
[1729359700521,0.8059,2642.3,2642.1,0.79287459]
[1729359701624,0.05464004,2642.2,2642.1,0.79287459]
[1729359704735,0.86054004,2642.3,2642.1,0.79287459]
[1729359706044,0.8059,2642.3,2642.1,0.79287459]
[1729359708641,4.22861004,2642.5,2642.1,0.79287459]
[1729359708820,0.82274004,2642.5,2642.2,0.95445885]
[1729359709023,0.82274004,2642.5,2642.2,0.79287459]
[1729359709554,0.05464004,2642.6,2642.3,0.79287459]
[1729359710057,0.05464004,2642.6,2642.2,0.79287459]
[1729359711954,0.05464004,2642.6,2642.3,0.79287459]
[1729359712916,0.82274004,2642.7,2642.3,0.79287459]
[1729359713133,0.05464004,2642.8,2642.4,0.1699]
[1729359713333,0.05464004,2642.8,2642.4,0.96277459]
[1729359714548,0.82274004,2642.9,2642.4,0.96277459]
[1729359714750,0.05464004,2643.0,2642.4,1.36562273]
[1729359715072,0.05464004,2643.0,2642.5,0.79287459]
[1729359717751,0.05464004,2643.0,2642.4,1.36562273]
[1729359724998,0.05464004,2643.0,2642.4,0.96277459]
[1729359724999,3.40555,2642.8,2642.4,0.96277459]
[1729359725307,0.05464004,2642.7,2642.3,0.79287459]
[1729359726596,0.05464004,2642.7,2642.2,0.96277459]
[1729359729110,0.05464004,2642.8,2642.2,0.96277459]
[1729359730111,0.05464004,2642.8,2642.2,1.00687047]
[1729359730318,0.05464004,2642.8,2642.2,0.96277459]
[1729359730629,0.7658,2642.7,2642.3,0.1611221]
[1729359730802,0.7658,2642.7,2642.2,1.00687047]
[1729359731146,0.7658,2642.7,2642.2,1.38506362]
[1729359732318,0.05464004,2642.6,2642.2,1.34096774]
[1729359732647,0.82044004,2642.7,2642.2,1.34096774]
[1729359733323,0.82044004,2642.7,2642.3,0.16114769]
[1729359733648,0.82044004,2642.7,2642.2,1.34096774]
[1729359733649,0.7658,2642.7,2642.2,1.34096774]
[1729359733809,0.7658,2642.7,2642.3,0.16115128]
[1729359734008,0.7658,2642.7,2642.2,1.34096774]
[1729359734236,0.7658,2642.7,2642.3,0.1611482]
[1729359734431,0.7658,2642.7,2642.2,1.38513663]
[1729359734746,0.05464004,2642.6,2642.3,0.16116776]
[1729359734911,0.05464004,2642.6,2642.2,1.34096774]
[1729359735112,0.05464004,2642.6,2642.3,0.16116932]
[1729359735448,4.17173,2642.5,2642.1,0.79287459]
[1729359735696,0.05464004,2642.4,2642.0,0.79287459]
[1729359735974,0.05464004,2642.4,2642.1,0.16124128]
[1729359736141,0.05464004,2642.4,2642.0,0.79287459]
[1729359736337,0.05464004,2642.4,2642.1,0.1612581]
[1729359736563,0.05464004,2642.4,2642.0,0.79287459]
[1729359736741,0.05464004,2642.4,2642.1,0.16128182]
[1729359737057,0.05464004,2642.4,2642.0,0.79287459]
[1729359737254,0.05464004,2642.4,2642.1,0.16129593]
[1729359737451,0.05464004,2642.4,2642.0,0.79287459]
[1729359738541,0.05464004,2642.4,2641.9,0.79287459]
[1729359738742,0.7658,2642.3,2642.0,0.15983393]
[1729359739041,0.7658,2642.3,2641.9,0.79287459]
[1729359739241,0.7658,2642.3,2642.0,0.15983604]
[1729359739555,0.7658,2642.3,2641.9,0.79287459]
[1729359739883,0.05464004,2642.2,2641.8,0.79287459]
[1729359740040,0.7658,2642.1,2641.9,0.15986394]
[1729359740241,0.7658,2642.1,2641.8,0.79287459]
[1729359740480,0.7658,2642.1,2641.9,0.1598382]
[1729359740716,0.7658,2642.1,2641.9,0.79287459]
[1729359750890,0.7658,2642.1,2641.9,0.79148595]
[1729359751564,0.7658,2642.1,2642.0,0.79148595]
[1729359751764,0.7658,2642.1,2641.9,0.79148595]
[1729359752675,0.7658,2642.1,2642.0,0.79148595]
[1729359752878,0.7658,2642.1,2641.8,1.18722893]
[1729359752879,0.7658,2642.1,2641.9,0.79148595]
[1729359754680,0.7658,2642.1,2642.0,0.95131766]
[1729359755068,0.7658,2642.1,2641.9,0.79148595]
[1729359756652,0.7658,2642.1,2642.0,0.15986916]
[1729359756967,0.7658,2642.1,2642.0,0.95135511]
[1729359757462,0.7658,2642.1,2642.0,0.15986916]
[1729359757649,0.7658,2642.1,2641.9,0.79148595]
[1729359758050,0.7658,2642.1,2642.0,0.15988418]
[1729359758313,0.7658,2642.1,2641.9,0.79148595]
[1729359760480,0.7658,2642.1,2642.0,0.15991591]
[1729359761799,0.7658,2642.1,2641.9,0.79148595]
[1729359761970,0.7658,2642.1,2642.0,0.15993725]
[1729359763097,0.7658,2642.1,2641.9,0.79148595]
[1729359763774,0.7658,2642.1,2642.0,0.15999419]
[1729359763975,0.7658,2642.1,2641.9,0.79148595]
[1729359764363,0.7658,2642.1,2642.0,0.15999227]
[1729359765676,0.7658,2642.1,2641.9,0.79148595]
[1729359766687,0.7658,2642.1,2641.8,0.79148595]
[1729359766889,0.7658,2642.1,2641.9,0.79148595]
[1729359767609,0.7658,2642.1,2642.0,0.1601046]
[1729359769209,0.7658,2642.1,2642.0,0.95159055]
[1729359769932,0.7658,2642.1,2642.0,0.95159229]
[1729359773833,0.7658,2642.1,2642.0,0.9515795]
[1729359774403,0.7658,2642.1,2642.0,0.16009355]
[1729359774626,0.7658,2642.1,2642.0,0.95204264]
[1729359775511,0.7658,2642.1,2642.0,0.16009355]
[1729359775899,0.7658,2642.1,2642.0,0.95197751]
[1729359777810,0.7658,2642.1,2642.0,0.79188396]
[1729359778012,0.7658,2642.1,2642.0,0.95042679]
[1729359778319,0.7658,2642.1,2642.0,0.95061324]
[1729359779054,0.7658,2642.1,2642.0,0.95050069]
[1729359779247,0.7658,2642.1,2642.0,0.15854283]
[1729359779740,0.7658,2642.1,2642.0,0.95065983]
[1729359780542,0.7658,2642.1,2642.0,0.15854283]
[1729359781044,0.7658,2642.1,2642.0,1.34577176]
[1729359783111,4.17218,2642.1,2642.0,1.34577176]
[1729359783435,4.935474,2642.1,2642.0,0.95112764]
[1729359783637,4.935474,2642.1,2642.0,0.15854283]
[1729359783946,4.17211,2642.0,2641.9,1.18722893]
[1729359784135,4.22675004,2642.0,2641.9,0.79271691]
[1729359784467,3.40663,2641.9,2641.8,0.79271691]
[1729359785209,3.40663,2641.9,2641.7,1.18722893]
[1729359785514,3.40663,2641.9,2641.8,0.79269938]
[1729359786851,5.06643244,2642.0,2641.8,0.79269938]
[1729359787037,4.22679004,2642.0,2641.8,0.79269938]
[1729359790012,3.40663,2641.9,2641.8,0.79269938]
[1729359790413,3.40663,2641.9,2641.7,0.79269938]
[1729359790640,0.05464004,2641.8,2641.7,0.79269938]
[1729359790876,0.05464004,2641.8,2641.6,1.18722893]
[1729359791020,0.05464004,2641.8,2641.7,0.79231087]
[1729359791220,0.05464004,2641.8,2641.7,0.79229288]
[1729359791628,3.46127004,2641.9,2641.7,0.79229288]
[1729359808657,6.86799004,2641.9,2641.7,0.79229288]
[1729359808856,3.46127004,2641.9,2641.7,0.79229288]
[1729359809277,0.7876,2641.8,2641.7,0.79229288]
[1729359809495,0.84224004,2641.8,2641.7,0.95075851]
[1729359809653,4.24900004,2641.8,2641.7,0.15846563]
[1729359809857,4.24900004,2641.8,2641.6,0.79229288]
[1729359810254,0.84224004,2641.8,2641.6,0.79229288]
[1729359810449,3.40689,2641.7,2641.6,0.79229288]
[1729359810702,3.40689,2641.7,2641.6,0.95076312]
[1729359811301,0.7876,2642.0,2641.6,0.95076312]
[1729359811455,3.40619,2642.3,2641.7,0.95030823]
[1729359811660,4.24857004,2642.2,2641.9,0.79183799]
[1729359812672,0.84224004,2642.2,2641.8,0.79183799]
[1729359812889,3.40638,2642.1,2641.8,0.79183799]
[1729359813188,0.05464004,2642.0,2641.9,0.15846236]
[1729359813598,0.05464004,2642.0,2641.8,0.79183799]
[1729359813952,0.05464004,2642.0,2641.9,0.15847566]
[1729359815307,0.05464004,2642.1,2641.9,0.15847566]
[1729359815498,0.05464004,2642.1,2641.9,0.79183799]
[1729359815674,0.05464004,2642.1,2641.8,0.79183799]
[1729359815873,0.05464004,2642.1,2641.9,0.95029532]
[1729359816091,0.05464004,2642.1,2641.9,0.79183799]
[1729359816404,0.05464004,2642.1,2641.8,0.79183799]
[1729359816827,0.05464004,2642.1,2641.9,0.15845251]
[1729359816988,0.05464004,2642.1,2641.8,0.79183799]
[1729359817387,0.05464004,2642.1,2641.9,0.95028864]
[1729359817587,3.46102004,2642.1,2641.8,0.79183799]
[1729359818502,3.46102004,2642.1,2641.9,0.79183799]
[1729359818807,3.46102004,2642.1,2641.8,0.79183799]
[1729359819309,3.46102004,2642.1,2641.9,0.79183799]
[1729359821231,3.46102004,2642.1,2641.8,0.79183799]
[1729359821377,3.46102004,2642.1,2641.9,0.79183799]
[1729359821992,3.46102004,2642.1,2641.8,0.79183799]
[1729359822401,3.46102004,2642.1,2641.9,0.79183799]
[1729359824098,3.46102004,2642.1,2641.8,0.79183799]
[1729359825280,3.46102004,2642.1,2641.9,0.79183799]
[1729359825993,3.46102004,2642.1,2641.8,0.79183799]
[1729359826388,4.21943,2642.0,2641.9,0.79183799]
[1729359826600,4.21943,2642.0,2641.8,0.79183799]
[1729359826817,0.05464004,2641.9,2641.8,0.79183799]
[1729359832306,0.05464004,2641.9,2641.8,1.18722893]
[1729359833037,0.05464004,2641.9,2641.7,1.18722893]
[1729359833841,0.8129,2642.0,2641.8,0.79248101]
[1729359834040,0.8129,2642.0,2641.9,0.79248101]
[1729359834403,0.8129,2642.0,2641.8,0.79248101]
[1729359835640,0.8129,2642.0,2641.9,0.79248101]
[1729359838522,0.8129,2642.0,2641.8,0.79248101]
[1729359839046,0.8129,2642.0,2641.9,0.79248101]
[1729359840146,0.8129,2642.0,2641.8,0.79248101]
[1729359840347,0.8129,2642.0,2641.9,0.79248101]
[1729359840907,0.8129,2642.0,2641.8,0.79248101]
[1729359841246,0.8129,2642.0,2641.9,0.79248101]
[1729359851535,0.8129,2642.0,2641.8,0.79248101]
[1729359851976,0.8129,2642.0,2641.9,0.79248101]
[1729359852335,0.8129,2642.0,2641.8,0.79248101]
[1729359854138,0.8129,2642.0,2641.9,0.79248101]
[1729359854578,0.8129,2642.0,2641.8,0.79248101]
[1729359856659,0.59233325,2642.1,2641.8,0.79248101]
[1729359856872,3.99880325,2642.1,2641.8,0.79248101]
[1729359857485,3.40647,2642.1,2641.8,0.79248101]
[1729359859290,3.40647,2642.1,2641.9,0.79248101]
[1729359859643,3.40647,2642.1,2641.8,0.79248101]
[1729359867398,3.40647,2642.1,2641.9,0.79248101]
[1729359867558,3.40647,2642.1,2641.8,0.79248101]
[1729359870901,3.40647,2642.1,2641.9,0.79248101]
[1729359873311,3.40612,2642.3,2642.0,0.79248101]
[1729359874612,4.15632,2642.2,2642.0,0.79248101]
[1729359874902,4.15632,2642.2,2641.9,0.79248101]
[1729359876509,0.75,2642.2,2641.9,0.79248101]
[1729359876805,3.40644,2642.1,2641.9,0.79248101]
[1729359883038,0.75,2642.0,2641.9,0.79248101]
[1729359884139,0.75,2642.0,2641.8,0.79248101]
[1729359884437,0.75,2642.0,2641.9,0.79248101]
[1729359886234,3.40644,2642.1,2641.9,0.79248101]
[1729359890547,3.40644,2642.1,2641.9,0.79248101]
[1729359896255,4.21925,2642.2,2641.9,0.79248101]
[1729359909796,0.813,2642.2,2641.9,0.79248101]
[1729359913745,0.813,2642.2,2642.0,0.79248101]
[1729359913962,0.813,2642.2,2641.9,0.79248101]
[1729359915644,4.21934,2642.2,2641.9,0.79248101]
[1729359924460,3.40639,2642.1,2641.9,0.79248101]
[1729359924837,4.981814,2642.2,2641.9,0.79248101]
[1729359927071,1.575554,2642.2,2641.9,0.79248101]
[1729359927237,4.16691,2642.0,2641.9,0.79248101]